fUSD/lending_fUSD_20260202
["ID","MTS","AMOUNT","RATE_DAILY","PERIOD"]
[404326827,1770061847494,-250.0,0.00015523,2]
[404326828,1770061847506,-250.0,0.00015523,2]
[404326829,1770061847517,-250.0,0.00015523,2]
[404326830,1770061847526,-250.0,0.00015523,2]
[404326831,1770061847538,-250.0,0.00015523,2]
[404326832,1770061847548,-250.0,0.00015523,2]
[404326833,1770061847557,-250.0,0.00015523,2]
[404326834,1770061847572,-250.0,0.00015523,2]
[404326835,1770061847581,-250.0,0.00015523,2]
[404326836,1770061847592,-578.20924308,0.00015523,2]
[404326837,1770061847603,-209.40437684,0.00015523,2]
[404326838,1770061847615,-159.60859955,0.00015536,2]
[404326839,1770061847626,-1206.12316472,0.00015555,2]
[404326840,1770061847636,-217.15233878,0.00015578,2]
[404326841,1770061847657,-1666.54524169,0.00015616,2]
[404326842,1770061847678,-2000.0,0.00015616,2]
[404326843,1770061847690,-1517.4616613,0.00015616,2]
[404326844,1770061847701,-876.09004687,0.00015616,2]
[404326845,1770061847712,-2000.0,0.00015616,2]
[404326846,1770061847725,-2000.0,0.00015616,2]
[404326847,1770061847737,-1006.04407484,0.00015616,2]
[404326848,1770061847748,-2000.0,0.00015616,2]
[404326849,1770061847758,-2000.0,0.00015616,2]
[404326850,1770061847767,-2000.0,0.00015616,2]
[404326851,1770061847777,-2000.0,0.00015616,2]
[404326852,1770061847787,-1252.0,0.00015619,2]
[404326853,1770061847797,-458.51,0.00015621,2]
[404326854,1770061847807,-225.18697532,0.00015633,2]
[404326855,1770061847817,-233.51889341,0.00015688,2]
[404326856,1770061847827,-242.15909246,0.00015743,2]
[404326857,1770061847836,-500.0,0.00015757,2]
[404326858,1770061847846,-251.11897888,0.00015798,2]
[404326859,1770061847856,-200.0,0.00015838,2]
[404326860,1770061847866,-4609.0,0.00015847,2]
[404326861,1770061847876,-260.4103811,0.00015853,2]
[404326862,1770061847886,-458.51,0.00015895,2]
[404326863,1770061847896,-270.0455652,0.00015908,2]
[404326864,1770061847905,-1000.0,0.00015918,2]
[404326865,1770061847917,-5000.0,0.0001596,2]
[404326866,1770061847927,-280.03725112,0.00015963,2]
[404326867,1770061847936,-200.896366,0.00016,2]
[404326868,1770061847946,-290.39862941,0.00016018,2]
[404326869,1770061847956,-1000.0,0.00016021,2]
[404326870,1770061847966,-1000.0,0.00016021,2]
[404326871,1770061847976,-500.0,0.00016021,2]
[404326872,1770061847986,-1000.0,0.00016021,2]
[404326873,1770061847996,-1000.0,0.00016021,2]
[404326874,1770061848005,-691.30611065,0.00016021,2]
[404326875,1770061848015,-1000.0,0.00016021,2]
[404326876,1770061848026,-1003.70343212,0.00016021,2]
[404326877,1770061848038,-464.09949899,0.00016021,2]
[404326878,1770061848049,-987.41342802,0.00016021,2]
[404326879,1770061848058,-1000.0,0.00016021,2]
[404326880,1770061848068,-1000.0,0.00016021,2]
[404326881,1770061848079,-500.0,0.00016021,2]
[404326882,1770061848089,-960.71724918,0.00016021,2]
[404326883,1770061848099,-500.0,0.00016021,2]
[404326884,1770061848110,-500.0,0.00016021,2]
[404326885,1770061848121,-928.96442151,0.00016021,2]
[404326886,1770061848132,-504.20951303,0.00016021,2]
[404326887,1770061848144,-500.0,0.00016021,2]
[404326888,1770061848154,-500.0,0.00016021,2]
[404326889,1770061848165,-500.0,0.00016021,2]
[404326890,1770061848175,-502.15998223,0.00016021,2]
[404326891,1770061848185,-486.90150068,0.00016021,2]
[404326892,1770061848196,-1000.0,0.00016021,2]
[404326893,1770061848208,-500.0,0.00016021,2]
[404326894,1770061848219,-335.25607575,0.00016021,2]
[404326895,1770061848230,-1000.0,0.00016021,2]
[404326896,1770061848241,-500.0,0.00016021,2]
[404326897,1770061848251,-1000.0,0.00016021,2]
[404326898,1770061848261,-1000.0,0.00016021,2]
[404326899,1770061848271,-1000.0,0.00016021,2]
[404326900,1770061848284,-1000.0,0.00016021,2]
[404326901,1770061848295,-1000.0,0.00016021,2]
[404326902,1770061848306,-501.28378078,0.00016021,2]
[404326903,1770061848316,-1000.0,0.00016021,2]
[404326904,1770061848326,-1000.0,0.00016021,2]
[404326905,1770061848335,-500.0,0.00016021,2]
[404326906,1770061848345,-1000.0,0.00016021,2]
[404326907,1770061848355,-1000.0,0.00016021,2]
[404326908,1770061848365,-908.63714551,0.00016021,2]
[404326909,1770061848375,-181.08010149,0.00016071,2]
[404326910,1770061848385,-276.99112212,0.00016071,2]
[404326911,1770061848395,-151.0,0.00016071,2]
[404326912,1770061848405,-1481.23780761,0.00016071,2]
[404326913,1770061848414,-217.15233878,0.00016071,2]
[404326914,1770061848424,-301.1433787,0.00016073,2]
[404326915,1770061848433,-297.12,0.00016093,2]
[404326916,1770061848443,-9999.99,0.00016116,2]
[404326917,1770061848453,-525.72,0.00016133,2]
[404326918,1770061848462,-921.27732344,0.00016141,2]
[404326919,1770061848472,-2500.0,0.00016164,2]
[404326920,1770061848481,-1312.26829567,0.00016164,2]
[404326921,1770061848492,-2500.0,0.00016164,2]
[404326922,1770061848502,-2500.0,0.00016164,2]
[404326923,1770061848512,-327.96194417,0.00016164,2]
[404326924,1770061848521,-809.50611672,0.00016164,2]
[404326925,1770061848531,-473.78998774,0.00016164,2]
[404326926,1770061848541,-458.51,0.00016169,2]
[404326927,1770061848551,-181.63,0.00016249,2]
[404326928,1770061848562,-37752.8778,0.00016281,2]
[404326929,1770061848578,-319.0,0.00016301,2]
[404326930,1770061848588,-500.0,0.00016305,2]
[404326931,1770061848597,-159.60859955,0.00016312,2]
[404326932,1770061848608,-151.0,0.00016435,2]
[404326933,1770061848618,-1894.56667805,0.00016438,2]
[404326934,1770061848628,-1180.96358195,0.00016438,2]
[404326935,1770061848638,-1180.96358195,0.00016438,2]
[404326936,1770061848649,-1180.96358195,0.00016438,2]
[404326937,1770061848659,-1180.96358195,0.00016438,2]
[404326938,1770061848669,-1180.96358195,0.00016438,2]
[404326939,1770061848679,-1180.96358195,0.00016438,2]
[404326940,1770061848688,-1180.96358195,0.00016438,2]
[404326941,1770061848698,-1180.96358195,0.00016438,2]
[404326942,1770061848707,-1180.96358195,0.00016438,2]
[404326943,1770061848717,-1180.96358195,0.00016438,2]
[404326944,1770061848727,-1180.96358195,0.00016438,2]
[404326945,1770061848737,-1180.96358195,0.00016438,2]
[404326946,1770061848746,-1180.96358195,0.00016438,2]
[404326947,1770061848756,-1180.96358195,0.00016438,2]
[404326948,1770061848767,-1180.96358195,0.00016438,2]
[404326949,1770061848777,-1180.96358195,0.00016438,2]
[404326950,1770061848788,-1180.96358195,0.00016438,2]
[404326951,1770061848800,-1180.96358195,0.00016438,2]
[404326952,1770061848810,-1180.96358195,0.00016438,2]
[404326953,1770061848820,-1180.96358195,0.00016438,2]
[404326954,1770061848831,-1180.96358195,0.00016438,2]
[404326955,1770061848840,-1180.96358195,0.00016438,2]
[404326956,1770061848850,-1180.96358195,0.00016438,2]
[404326957,1770061848860,-1180.96358195,0.00016438,2]
[404326958,1770061848875,-1180.96358195,0.00016438,2]
[404326959,1770061848886,-1180.96358195,0.00016438,2]
[404326960,1770061848896,-1180.96358195,0.00016438,2]
[404326961,1770061848906,-1180.96358195,0.00016438,2]
[404326962,1770061848915,-1180.96358195,0.00016438,2]
[404326963,1770061848924,-1180.96358195,0.00016438,2]
[404326964,1770061848936,-1180.96358195,0.00016438,2]
[404326965,1770061848947,-1180.96358195,0.00016438,2]
[404326966,1770061848958,-1180.96358195,0.00016438,2]
[404326967,1770061848970,-1180.96358195,0.00016438,2]
[404326968,1770061848980,-1180.96358195,0.00016438,2]
[404326969,1770061848990,-1180.96358195,0.00016438,2]
[404326970,1770061849001,-1180.96358195,0.00016438,2]
[404326971,1770061849011,-1180.96358195,0.00016438,2]
[404326972,1770061849022,-1180.96358195,0.00016438,2]
[404326973,1770061849033,-1180.96358195,0.00016438,2]
[404326974,1770061849044,-1180.96358195,0.00016438,2]
[404326975,1770061849055,-1180.96358195,0.00016438,2]
[404326976,1770061849064,-1180.96358195,0.00016438,2]
[404326977,1770061849074,-900.0,0.00016438,2]
[404326978,1770061849085,-800.0,0.00016438,2]
[404326979,1770061849095,-458.66755852,0.00016443,2]
[404326980,1770061849106,-389.0,0.00016446,2]
[404326981,1770061849116,-150.0,0.00016473,2]
[404326982,1770061849126,-500.0,0.00016493,2]
[404326983,1770061849136,-1000.0,0.00016515,2]
[404326984,1770061849147,-1001.43163729,0.00016568,2]
[404326985,1770061849158,-1500.0,0.00016568,2]
[404326986,1770061849169,-1001.04497332,0.00016568,2]
[404326987,1770061849179,-1500.0,0.00016568,2]
[404326988,1770061849189,-502.44429427,0.00016568,2]
[404326989,1770061849200,-385.68955508,0.00016568,2]
[404326990,1770061849210,-1500.0,0.00016568,2]
[404326991,1770061849220,-503.30357537,0.00016568,2]
[404326992,1770061849231,-503.56470175,0.00016568,2]
[404326993,1770061849242,-187.78006525,0.00016619,2]
[404326994,1770061849254,-230.16041742,0.00016619,2]
[404326995,1770061849264,-1536.04360649,0.00016619,2]
[404326996,1770061849274,-225.18697532,0.00016619,2]
[404326997,1770061849284,-3000.0,0.00016712,2]
[404326998,1770061849294,-1500.0,0.00016712,2]
[404326999,1770061849306,-3000.0,0.00016712,2]
[404327000,1770061849316,-1206.12316472,0.00016727,2]
[404327001,1770061849325,-297.12,0.00016824,2]
[404327002,1770061849335,-500.0,0.00016836,2]
[404327003,1770061849346,-500.0,0.00016853,2]
[404327004,1770061849357,-334.5472959,0.00016892,2]
[404327005,1770061849580,-16763.1750962,0.00016918,2]
[404327006,1770061849591,-421.88469562,0.00016918,2]
[404327007,1770061849602,-389.0,0.00016974,2]
[404327008,1770061849613,-300.0,0.00017,2]
[404327009,1770061849623,-500.0,0.00017,7]
[404327010,1770061849632,-300.0,0.00017021,2]
[404327011,1770061849642,-159.60859955,0.00017089,2]
[404327012,1770061849652,-2844.0,0.000171,2]
[404327013,1770061849661,-271.46575438,0.000171,2]
[404327014,1770061849671,-389.0,0.0001711,2]
[404327015,1770061849680,-1000.0,0.00017112,2]
[404327016,1770061849689,-1859.0,0.00017113,2]
[404327017,1770061849698,-500.0,0.00017116,2]
[404327018,1770061849707,-2000.0,0.00017116,2]
[404327019,1770061849717,-194.72792766,0.00017167,2]
[404327020,1770061849726,-1592.87721993,0.00017167,2]
[404327021,1770061849736,-233.51889341,0.00017167,2]
[404327022,1770061849745,-1119.56,0.00017178,2]
[404327023,1770061849755,-3500.0,0.0001726,2]
[404327024,1770061849764,-1000.0,0.0001726,2]
[404327025,1770061849773,-475.39944629,0.0001726,2]
[404327026,1770061849783,-1500.0,0.000174,2]
[404327027,1770061849794,-500.0,0.00017401,2]
[404327028,1770061849806,-5233.0,0.00017414,2]
[404327029,1770061849815,-6453.0,0.00017432,2]
[404327030,1770061849825,-5233.0,0.00017462,2]
[404327031,1770061849834,-13442.50995431,0.000175,2]
[404327032,1770061849844,-168.0,0.00017526,2]
[404327033,1770061849853,-718.43917855,0.00017534,2]
[404327034,1770061849862,-1000.0,0.00017534,2]
[404327035,1770061849872,-297.12,0.00017556,2]
[404327036,1770061849881,-5233.0,0.0001756,2]
[404327037,1770061849890,-450.0,0.00017568,2]
[404327038,1770061849900,-400.0,0.000176,6]
[404327039,1770061849909,-389.0,0.00017619,2]
[404327040,1770061849919,-1154.18303728,0.0001764,2]
[404327041,1770061849930,-172.44734327,0.00017664,2]
[404327042,1770061849941,-500.0,0.00017671,2]
[404327043,1770061849952,-858.0,0.0001768,2]
[404327044,1770061849962,-500.0,0.00017699,2]
[404327045,1770061849973,-424.0,0.00017699,2]
[404327046,1770061849983,-500.0,0.00017699,2]
[404327047,1770061849994,-150.0,0.00017699,2]
[404327048,1770061850004,-500.0,0.00017699,2]
[404327049,1770061850013,-500.0,0.00017699,2]
[404327050,1770061850024,-150.0,0.00017699,2]
[404327051,1770061850033,-1340.0,0.00017699,2]
[404327052,1770061850043,-522.0,0.00017699,2]
[404327053,1770061850053,-500.0,0.00017699,2]
[404327054,1770061850065,-500.0,0.00017699,2]
[404327055,1770061850078,-500.0,0.00017699,2]
[404327056,1770061850087,-500.0,0.00017699,2]
[404327057,1770061850097,-500.0,0.00017699,2]
[404327058,1770061850107,-150.0,0.00017699,2]
[404327059,1770061850116,-612.0,0.00017699,2]
[404327060,1770061850126,-150.0,0.00017699,2]
[404327061,1770061850136,-500.0,0.00017699,2]
[404327062,1770061850147,-1829.0,0.00017699,2]
[404327063,1770061850158,-150.0,0.00017699,2]
[404327064,1770061850167,-150.0,0.00017699,2]
[404327065,1770061850178,-153.44848841,0.00017699,2]
[404327066,1770061850188,-500.0,0.00017699,2]
[404327067,1770061850198,-234.50786848,0.00017699,2]
[404327068,1770061850209,-150.10178686,0.00017699,2]
[404327069,1770061850220,-150.0,0.00017699,2]
[404327070,1770061850230,-150.86853195,0.00017699,2]
[404327071,1770061850240,-150.0,0.00017699,2]
[404327072,1770061850250,-500.0,0.00017699,2]
[404327073,1770061850259,-150.0,0.00017699,2]
[404327074,1770061850271,-500.0,0.00017699,2]
[404327075,1770061850281,-500.0,0.00017699,2]
[404327076,1770061850291,-864.0,0.00017699,2]
[404327077,1770061850302,-150.96565967,0.00017699,2]
[404327078,1770061850311,-150.0,0.00017699,2]
[404327079,1770061850321,-500.0,0.00017699,2]
[404327080,1770061850331,-166.03343311,0.00017699,2]
[404327081,1770061850342,-500.0,0.00017699,2]
[404327082,1770061850351,-481.0,0.00017699,2]
[404327083,1770061850362,-790.0,0.00017699,2]
[404327084,1770061850372,-150.0,0.00017699,2]
[404327085,1770061850383,-500.0,0.00017699,2]
[404327086,1770061850395,-150.0,0.00017699,2]
[404327087,1770061850405,-150.0,0.00017699,2]
[404327088,1770061850415,-747.502,0.00017699,2]
[404327089,1770061850426,-400.0,0.000177,6]
[404327090,1770061850437,-2508.0,0.000177,2]
[404327091,1770061850447,-1000.0,0.00017709,2]
[404327092,1770061850457,-201.93286099,0.00017715,2]
[404327093,1770061850467,-1651.81367706,0.00017715,2]
[404327094,1770061850476,-242.15909246,0.00017715,2]
[404327095,1770061850486,-350.48,0.00017739,2]
[404327096,1770061850496,-500.0,0.00017754,2]
[404327097,1770061850506,-424.0,0.00017754,2]
[404327098,1770061850516,-500.0,0.00017754,2]
[404327099,1770061850527,-150.0,0.00017754,2]
[404327100,1770061850537,-500.0,0.00017754,2]
[404327101,1770061850547,-500.0,0.00017754,2]
[404327102,1770061850557,-150.0,0.00017754,2]
[404327103,1770061850567,-1340.0,0.00017754,2]
[404327104,1770061850579,-522.0,0.00017754,2]
[404327105,1770061850589,-500.0,0.00017754,2]
[404327106,1770061850599,-500.0,0.00017754,2]
[404327107,1770061850610,-501.86439171,0.00017754,2]
[404327108,1770061850620,-500.0,0.00017754,2]
[404327109,1770061850630,-500.0,0.00017754,2]
[404327110,1770061850640,-150.0,0.00017754,2]
[404327111,1770061850650,-612.0,0.00017754,2]
[404327112,1770061850660,-150.0,0.00017754,2]
[404327113,1770061850669,-500.0,0.00017754,2]
[404327114,1770061850680,-1829.0,0.00017754,2]
[404327115,1770061850688,-500.0,0.00017754,2]
[404327116,1770061850698,-150.0,0.00017754,2]
[404327117,1770061850707,-150.38249848,0.00017754,2]
[404327118,1770061850717,-500.0,0.00017754,2]
[404327119,1770061850728,-150.0,0.00017754,2]
[404327120,1770061850737,-500.0,0.00017754,2]
[404327121,1770061850747,-500.0,0.00017754,2]
[404327122,1770061850756,-864.0,0.00017754,2]
[404327123,1770061850767,-150.0,0.00017754,2]
[404327124,1770061850777,-500.0,0.00017754,2]
[404327125,1770061850786,-500.0,0.00017754,2]
[404327126,1770061850795,-481.0,0.00017754,2]
[404327127,1770061850807,-150.0,0.00017754,2]
[404327128,1770061850816,-790.0,0.00017754,2]
[404327129,1770061850825,-500.0,0.00017754,2]
[404327130,1770061850835,-350.48,0.00017778,2]
[404327131,1770061850844,-271.93387854,0.00017783,2]
[404327132,1770061850854,-25000.0,0.00017786,3]
[404327133,1770061850863,-181.63,0.0001779,2]
[404327134,1770061850873,-25000.0,0.00017794,3]
[404327135,1770061850882,-400.0,0.000178,6]
[404327136,1770061850892,-25000.0,0.00017803,3]
[404327137,1770061850901,-150.0,0.00017808,2]
[404327138,1770061850911,-3850.93477356,0.00017808,2]
[404327139,1770061850920,-1000.0,0.00017808,2]
[404327140,1770061850930,-424.0,0.00017809,2]
[404327141,1770061850939,-500.0,0.00017809,2]
[404327142,1770061850948,-500.0,0.00017809,2]
[404327143,1770061850957,-150.0,0.00017809,2]
[404327144,1770061850967,-500.0,0.00017809,2]
[404327145,1770061850975,-500.0,0.00017809,2]
[404327146,1770061850985,-150.0,0.00017809,2]
[404327147,1770061850994,-1340.0,0.00017809,2]
[404327148,1770061851003,-522.0,0.00017809,2]
[404327149,1770061851013,-500.0,0.00017809,2]
[404327150,1770061851022,-328.08780435,0.00017809,2]
[404327151,1770061851031,-500.0,0.00017809,2]
[404327152,1770061851040,-500.0,0.00017809,2]
[404327153,1770061851050,-150.0,0.00017809,2]
[404327154,1770061851059,-612.0,0.00017809,2]
[404327155,1770061851068,-150.0,0.00017809,2]
[404327156,1770061851077,-500.0,0.00017809,2]
[404327157,1770061851087,-1829.0,0.00017809,2]
[404327158,1770061851096,-500.0,0.00017809,2]
[404327159,1770061851105,-150.0,0.00017809,2]
[404327160,1770061851115,-500.0,0.00017809,2]
[404327161,1770061851124,-150.0,0.00017809,2]
[404327162,1770061851133,-500.0,0.00017809,2]
[404327163,1770061851142,-500.0,0.00017809,2]
[404327164,1770061851152,-864.0,0.00017809,2]
[404327165,1770061851162,-166.3626574,0.00017809,2]
[404327166,1770061851171,-500.0,0.00017809,2]
[404327167,1770061851180,-500.0,0.00017809,2]
[404327168,1770061851189,-481.0,0.00017809,2]
[404327169,1770061851199,-150.0,0.00017809,2]
[404327170,1770061851208,-790.0,0.00017809,2]
[404327171,1770061851218,-500.0,0.00017809,2]
[404327172,1770061851227,-25000.0,0.00017812,3]
[404327173,1770061851236,-3764.4246687,0.0001782,10]
[404327174,1770061851246,-2000.0,0.0001782,2]
[404327175,1770061851255,-2000.0,0.0001782,2]
[404327176,1770061851264,-25000.0,0.00017821,3]
[404327177,1770061851274,-25000.0,0.0001783,3]
[404327178,1770061851284,-25000.0,0.00017838,3]
[404327179,1770061851293,-25000.0,0.00017847,3]
[404327180,1770061851302,-25000.0,0.00017856,3]
[404327181,1770061851311,-200.0,0.00017856,2]
[404327182,1770061851320,-150.0,0.00017863,2]
[404327183,1770061851329,-500.0,0.00017863,2]
[404327184,1770061851338,-424.0,0.00017863,2]
[404327185,1770061851348,-500.0,0.00017863,2]
[404327186,1770061851357,-500.0,0.00017863,2]
[404327187,1770061851366,-500.0,0.00017863,2]
[404327188,1770061851375,-150.0,0.00017863,2]
[404327189,1770061851385,-1340.0,0.00017863,2]
[404327190,1770061851394,-522.0,0.00017863,2]
[404327191,1770061851403,-490.52881885,0.00017863,2]
[404327192,1770061851413,-500.0,0.00017863,2]
[404327193,1770061851422,-500.0,0.00017863,2]
[404327194,1770061851431,-612.0,0.00017863,2]
[404327195,1770061851441,-150.0,0.00017863,2]
[404327196,1770061851450,-500.0,0.00017863,2]
[404327197,1770061851459,-1829.0,0.00017863,2]
[404327198,1770061851468,-583.41072536,0.00017863,2]
[404327199,1770061851478,-150.0,0.00017863,2]
[404327200,1770061851487,-500.0,0.00017863,2]
[404327201,1770061851496,-150.0,0.00017863,2]
[404327202,1770061851505,-500.0,0.00017863,2]
[404327203,1770061851514,-864.0,0.00017863,2]
[404327204,1770061851524,-500.0,0.00017863,2]
[404327205,1770061851533,-500.0,0.00017863,2]
[404327206,1770061851542,-481.0,0.00017863,2]
[404327207,1770061851550,-221.0,0.00017863,2]
[404327208,1770061851560,-790.0,0.00017863,2]
[404327209,1770061851572,-500.0,0.00017863,2]
[404327210,1770061851582,-25000.0,0.00017865,3]
[404327211,1770061851591,-159.60859955,0.00017866,2]
[404327212,1770061851600,-25000.0,0.00017874,3]
[404327213,1770061851611,-25000.0,0.00017882,3]
[404327214,1770061851620,-25000.0,0.00017891,3]
[404327215,1770061851629,-500.0,0.000179,2]
[404327216,1770061851639,-25000.0,0.000179,3]
[404327217,1770061851648,-1206.12316472,0.000179,2]
[404327218,1770061851657,-921.27732344,0.000179,2]
[404327219,1770061851666,-390.05095174,0.000179,2]
[404327220,1770061851675,-20453.46079029,0.000179,3]
[404327221,1770061851685,-768.0,0.000179,6]
[404327222,1770061851694,-325.60978846,0.000179,2]
[404327223,1770061851703,-12305.0,0.000179,2]
[404327224,1770061851713,-200.0,0.00017918,2]
[404327225,1770061851722,-424.0,0.00017918,2]
[404327226,1770061851731,-500.0,0.00017918,2]
[404327227,1770061851740,-500.0,0.00017918,2]
[404327228,1770061851750,-500.0,0.00017918,2]
[404327229,1770061851759,-506.01499169,0.00017918,2]
[404327230,1770061851769,-150.0,0.00017918,2]
[404327231,1770061851779,-1340.0,0.00017918,2]
[404327232,1770061851788,-522.0,0.00017918,2]
[404327233,1770061851797,-500.0,0.00017918,2]
[404327234,1770061851808,-500.0,0.00017918,2]
[404327235,1770061851817,-612.0,0.00017918,2]
[404327236,1770061851826,-150.0,0.00017918,2]
[404327237,1770061851835,-329.99262105,0.00017918,2]
[404327238,1770061851845,-1829.0,0.00017918,2]
[404327239,1770061851855,-214.97672583,0.00017918,2]
[404327240,1770061851922,-500.0,0.00017918,2]
[404327241,1770061851931,-291.47561802,0.00017918,2]
[404327242,1770061851940,-500.0,0.00017918,2]
[404327243,1770061851949,-864.0,0.00017918,2]
[404327244,1770061851958,-500.0,0.00017918,2]
[404327245,1770061851968,-500.0,0.00017918,2]
[404327246,1770061851977,-481.0,0.00017918,2]
[404327247,1770061851986,-790.0,0.00017918,2]
[404327248,1770061851995,-500.0,0.00017918,2]
[404327249,1770061852005,-1000.0,0.00017946,2]
[404327250,1770061852014,-1000.0,0.00017946,2]
[404327251,1770061852023,-1000.0,0.00017946,2]
[404327252,1770061852032,-1000.0,0.00017946,2]
[404327253,1770061852041,-1000.0,0.00017946,2]
[404327254,1770061852050,-500.0,0.00017949,2]
[404327255,1770061852060,-500.0,0.00017973,2]
[404327256,1770061852069,-424.0,0.00017973,2]
[404327257,1770061852078,-500.0,0.00017973,2]
[404327258,1770061852087,-356.45210639,0.00017973,2]
[404327259,1770061852096,-155.65422092,0.00017973,2]
[404327260,1770061852105,-1340.0,0.00017973,2]
[404327261,1770061852114,-522.0,0.00017973,2]
[404327262,1770061852123,-500.0,0.00017973,2]
[404327263,1770061852132,-500.0,0.00017973,2]
[404327264,1770061852141,-612.0,0.00017973,2]
[404327265,1770061852150,-250.0,0.00017973,2]
[404327266,1770061852159,-1829.0,0.00017973,2]
[404327267,1770061852168,-500.0,0.00017973,2]
[404327268,1770061852177,-500.0,0.00017973,2]
[404327269,1770061852187,-864.0,0.00017973,2]
[404327270,1770061852196,-500.0,0.00017973,2]
[404327271,1770061852205,-500.0,0.00017973,2]
[404327272,1770061852215,-481.0,0.00017973,2]
[404327273,1770061852225,-790.0,0.00017973,2]
[404327274,1770061852234,-500.0,0.00017973,2]
[404327275,1770061852242,-500.0,0.00017982,2]
[404327276,1770061852251,-295127.9448674,0.00017985,2]
[404327277,1770061852260,-151.0,0.00017997,2]
[404327278,1770061852269,-300.0,0.00017999,2]
[404327279,1770061852278,-300.0,0.00017999,2]
[404327280,1770061852288,-1010.3175,0.00017999,2]
[404327281,1770061852297,-300.0,0.00017999,2]
[404327282,1770061852306,-265.58840157,0.00017999,2]
[404327283,1770061852315,-300.0,0.00017999,2]
[404327284,1770061852323,-666.0,0.00017999,2]
[404327285,1770061852333,-300.0,0.00017999,2]
[404327286,1770061852342,-300.0,0.00017999,2]
[404327287,1770061852351,-300.0,0.00017999,2]
[404327288,1770061852360,-724.96374107,0.00017999,2]
[404327289,1770061852368,-300.0,0.00017999,2]
[404327290,1770061852377,-300.0,0.00017999,2]
[404327291,1770061852386,-666.0,0.00017999,2]
[404327292,1770061852395,-4299152.26440623,0.00018,2]
[404327293,1770061852695,1886.95882529,0.00010729,2]
[404327294,1770061852742,423.06774773,0.00010729,2]
[404327295,1770061852766,1463.89107756,0.00010729,2]
[404327296,1770061852782,-642.76071279,0.00016438,2]
[404327297,1770061852822,1886.95882529,0.00010729,2]
[404327298,1770061852886,1886.95882529,0.00010729,2]
[404327299,1770061852899,-437.70943335,0.00016438,2]
[404327300,1770061852942,1886.95882529,0.00010729,2]
[404327301,1770061852987,1886.95882529,0.00010729,2]
[404327302,1770061853030,988.28362128,0.00010729,2]
[404327303,1770061853055,898.67520401,0.00010729,2]
[404327304,1770061853114,1886.95882529,0.00010729,2]
[404327305,1770061853168,1886.95882529,0.00010729,2]
[404327306,1770061853213,1886.95882529,0.00010729,2]
[404327307,1770061853255,1886.95882529,0.00010729,2]
[404327308,1770061853301,1553.49949483,0.00010729,2]
[404327309,1770061853328,333.45933046,0.00010729,2]
[404327310,1770061853368,1886.95882529,0.00010729,2]
[404327311,1770061853408,1886.95882529,0.00010729,2]
[404327312,1770061853489,1886.95882529,0.00010729,2]
[404327313,1770061853541,1886.95882529,0.00010729,2]
[404327314,1770061853592,1886.95882529,0.00010729,2]
[404327315,1770061853641,231.75654309,0.00010729,2]
[404327316,1770061853668,1655.2022822,0.00010729,2]
[404327317,1770061853726,1886.95882529,0.00010729,2]
[404327318,1770061853848,-100.49343581,0.00016438,2]
[404327319,1770061853858,-1180.96358195,0.00016438,2]
[404327320,1770061853867,-256.92508023,0.00016438,2]
[404327321,1770061853879,-924.03850172,0.00016438,2]
[404327322,1770061853889,-1180.96358195,0.00016438,2]
[404327323,1770061853899,-1180.96358195,0.00016438,2]
[404327324,1770061853908,-1180.96358195,0.00016438,2]
[404327325,1770061853918,-1180.96358195,0.00016438,2]
[404327326,1770061853927,-1180.96358195,0.00016438,2]